[Event "Meltwater Champions Chess Tour 2022: Chessable Masters | Prelims"]
[White "Praggnanandhaa, R"]
[Black "Tari, Aryan"]
[WhiteFideId "25059530"]
[BlackFideId "1510045"]
[WhiteElo "1927"]
[BlackElo "2531"]
[Result "1-0"]
[Round "03"]
[TimeControl "900+10"]
[Date "2022.05.19"]
[WhiteClock "0:04:19"]
[BlackClock "0:01:51"]

1. e4 {[%clk 0:15:20]}  e5 {[%clk 0:15:20]} 2. Nf3 {[%clk 0:15:25]}  Nc6 {[%clk 0:15:29]} 3. Bb5 {[%clk 0:15:33]}  Nf6 {[%clk 0:15:37]} 4. d3 {[%clk 0:15:42]}  Bc5 {[%clk 0:15:45]} 5. c3 {[%clk 0:15:44]}  O-O {[%clk 0:15:53]} 6. O-O {[%clk 0:15:52]}  d5 {[%clk 0:16:02]} 7. Qe2 {[%clk 0:15:58]}  dxe4 {[%clk 0:15:10]} 8. dxe4 {[%clk 0:16:06]}  a5 {[%clk 0:15:03]} 9. Bg5 {[%clk 0:15:51]}  Qe7 {[%clk 0:14:41]} 10. Bh4 {[%clk 0:13:36]}  Nb8 {[%clk 0:14:19]} 11. Nbd2 {[%clk 0:13:29]}  c6 {[%clk 0:13:07]} 12. Bd3 {[%clk 0:13:23]}  Nbd7 {[%clk 0:12:00]} 13. Nc4 {[%clk 0:13:06]}  b5 {[%clk 0:11:22]} 14. Ne3 {[%clk 0:13:11]}  Bxe3 {[%clk 0:11:31]} 15. Qxe3 {[%clk 0:13:13]}  a4 {[%clk 0:10:10]} 16. Rfd1 {[%clk 0:12:40]}  Bb7 {[%clk 0:09:41]} 17. Rd2 {[%clk 0:10:52]}  Rfd8 {[%clk 0:08:07]} 18. Rad1 {[%clk 0:10:55]}  Nf8 {[%clk 0:07:44]} 19. Qb6 {[%clk 0:09:37]}  Ra6 {[%clk 0:07:24]} 20. Bxf6 {[%clk 0:09:18]}  gxf6 {[%clk 0:07:32]} 21. Qe3 {[%clk 0:09:24]}  Ng6 {[%clk 0:07:25]} 22. h4 {[%clk 0:08:19]}  Raa8 {[%clk 0:06:29]} 23. g3 {[%clk 0:06:16]}  Bc8 {[%clk 0:06:28]} 24. h5 {[%clk 0:06:18]}  Nf8 {[%clk 0:06:33]} 25. Nh4 {[%clk 0:05:38]}  Be6 {[%clk 0:06:11]} 26. Nf5 {[%clk 0:05:18]}  Bxf5 {[%clk 0:04:21]} 27. exf5 {[%clk 0:05:28]}  Rd6 {[%clk 0:03:48]} 28. Be4 {[%clk 0:05:15]}  Rxd2 {[%clk 0:03:42]} 29. Qxd2 {[%clk 0:05:09]}  Rc8 {[%clk 0:03:18]} 30. h6 {[%clk 0:04:52]}  Kh8 {[%clk 0:02:25]} 31. Qd6 {[%clk 0:04:35]}  Qxd6 {[%clk 0:02:31]} 32. Rxd6 {[%clk 0:04:45]}  c5 {[%clk 0:02:41]} 33. Bc6 {[%clk 0:04:30]}  b4 {[%clk 0:02:19]} 34. Bxa4 {[%clk 0:04:14]}  bxc3 {[%clk 0:01:53]} 35. bxc3 {[%clk 0:04:22]}  c4 {[%clk 0:01:51]} 36. Bb5 {[%clk 0:04:19]} 1-0


[Site "http://www.chessbomb.com"]

[Event "Meltwater Champions Chess Tour 2022: Chessable Masters | Prelims"]
[White "Harikrishna, Pentala"]
[Black "Giri, Anish"]
[WhiteFideId "5007003"]
[BlackFideId "24116068"]
[WhiteElo "2624"]
[BlackElo "2730"]
[Result "1/2-1/2"]
[Round "03"]
[TimeControl "900+10"]
[Date "2022.05.19"]
[WhiteClock "0:01:16"]
[BlackClock "0:00:59"]

1. d4 {[%clk 0:15:20]}  Nf6 {[%clk 0:15:20]} 2. Nf3 {[%clk 0:15:26]}  g6 {[%clk 0:15:23]} 3. Bg5 {[%clk 0:15:32]}  Bg7 {[%clk 0:15:31]} 4. Nbd2 {[%clk 0:15:41]}  O-O {[%clk 0:15:10]} 5. c3 {[%clk 0:15:43]}  h6 {[%clk 0:14:55]} 6. Bh4 {[%clk 0:15:50]}  d6 {[%clk 0:15:00]} 7. e4 {[%clk 0:15:57]}  c5 {[%clk 0:15:06]} 8. dxc5 {[%clk 0:16:02]}  dxc5 {[%clk 0:15:16]} 9. Bc4 {[%clk 0:16:10]}  Nc6 {[%clk 0:15:20]} 10. O-O {[%clk 0:16:03]}  Na5 {[%clk 0:15:05]} 11. Be2 {[%clk 0:15:31]}  Be6 {[%clk 0:14:49]} 12. Qc2 {[%clk 0:15:31]}  Nh5 {[%clk 0:14:52]} 13. Rfd1 {[%clk 0:15:30]}  Qc7 {[%clk 0:14:57]} 14. Nb3 {[%clk 0:15:32]}  Nxb3 {[%clk 0:14:28]} 15. axb3 {[%clk 0:15:40]}  Nf4 {[%clk 0:14:22]} 16. Bc4 {[%clk 0:14:01]}  Bg4 {[%clk 0:14:17]} 17. Bg3 {[%clk 0:12:10]}  Bxf3 {[%clk 0:14:09]} 18. gxf3 {[%clk 0:12:18]}  Be5 {[%clk 0:13:50]} 19. Rd2 {[%clk 0:12:18]}  e6 {[%clk 0:09:52]} 20. Rad1 {[%clk 0:11:15]}  Rad8 {[%clk 0:09:40]} 21. Qc1 {[%clk 0:10:53]}  g5 {[%clk 0:09:21]} 22. Rxd8 {[%clk 0:07:28]}  Rxd8 {[%clk 0:09:28]} 23. Rd2 {[%clk 0:07:24]}  Ng6 {[%clk 0:08:53]} 24. Qd1 {[%clk 0:06:57]}  Rxd2 {[%clk 0:08:58]} 25. Qxd2 {[%clk 0:07:07]}  Bf4 {[%clk 0:08:18]} 26. Qd1 {[%clk 0:06:40]}  h5 {[%clk 0:06:29]} 27. Bf1 {[%clk 0:05:14]}  h4 {[%clk 0:05:29]} 28. Bxf4 {[%clk 0:05:20]}  Nxf4 {[%clk 0:05:11]} 29. h3 {[%clk 0:05:27]}  a5 {[%clk 0:04:42]} 30. Qd2 {[%clk 0:05:26]}  b6 {[%clk 0:03:46]} 31. Qd1 {[%clk 0:05:12]}  Kf8 {[%clk 0:03:37]} 32. Qd2 {[%clk 0:05:21]}  Ke7 {[%clk 0:03:45]} 33. Qd1 {[%clk 0:05:30]}  Qd6 {[%clk 0:03:44]} 34. Qc1 {[%clk 0:05:12]}  Kf6 {[%clk 0:03:48]} 35. Qe1 {[%clk 0:05:14]}  Ng6 {[%clk 0:03:50]} 36. Qc1 {[%clk 0:05:06]}  Nf4 {[%clk 0:03:10]} 37. Qe1 {[%clk 0:05:11]}  Qe5 {[%clk 0:03:11]} 38. Qd2 {[%clk 0:05:08]}  Ke7 {[%clk 0:03:20]} 39. Qd1 {[%clk 0:05:14]}  Qb8 {[%clk 0:02:40]} 40. Qa1 {[%clk 0:04:30]}  Qd6 {[%clk 0:02:35]} 41. Qc1 {[%clk 0:04:38]}  Qd7 {[%clk 0:02:41]} 42. Kh2 {[%clk 0:04:09]}  Kf6 {[%clk 0:01:23]} 43. Kg1 {[%clk 0:03:53]}  a4 {[%clk 0:00:56]} 44. bxa4 {[%clk 0:03:28]}  Qxa4 {[%clk 0:01:06]} 45. Qd2 {[%clk 0:03:20]}  Ke7 {[%clk 0:01:13]} 46. Kh2 {[%clk 0:02:54]}  Qd7 {[%clk 0:01:21]} 47. Qc1 {[%clk 0:02:56]}  Qd6 {[%clk 0:01:04]} 48. Kg1 {[%clk 0:03:02]}  Kf6 {[%clk 0:00:59]} 49. Qe1 {[%clk 0:03:03]}  Kg7 {[%clk 0:00:56]} 50. Qc1 {[%clk 0:03:01]}  b5 {[%clk 0:00:50]} 51. Qe1 {[%clk 0:02:44]}  b4 {[%clk 0:00:54]} 52. Qc1 {[%clk 0:01:58]}  b3 {[%clk 0:01:00]} 53. Qe1 {[%clk 0:02:01]}  c4 {[%clk 0:00:55]} 54. Bxc4 {[%clk 0:01:44]}  Nxh3+ {[%clk 0:01:03]} 55. Kg2 {[%clk 0:01:53]}  Nf4+ {[%clk 0:01:11]} 56. Kh1 {[%clk 0:01:52]}  Qc5 {[%clk 0:00:31]} 57. Bf1 {[%clk 0:01:28]}  Kf6 {[%clk 0:00:24]} 58. Qe3 {[%clk 0:01:18]}  Qd6 {[%clk 0:00:19]} 59. Kg1 {[%clk 0:00:36]}  e5 {[%clk 0:00:17]} 60. Bc4 {[%clk 0:00:33]}  Qd1+ {[%clk 0:00:24]} 61. Kh2 {[%clk 0:00:42]}  Qc2 {[%clk 0:00:26]} 62. Qa7 {[%clk 0:00:49]}  Ne6 {[%clk 0:00:30]} 63. Bxe6 {[%clk 0:00:43]}  fxe6 {[%clk 0:00:37]} 64. Kg2 {[%clk 0:00:52]}  Qxb2 {[%clk 0:00:33]} 65. Qc5 {[%clk 0:00:34]}  Qc2 {[%clk 0:00:21]} 66. Qf8+ {[%clk 0:00:40]}  Kg6 {[%clk 0:00:30]} 67. Qg8+ {[%clk 0:00:48]}  Kf6 {[%clk 0:00:40]} 68. Qf8+ {[%clk 0:00:57]}  Kg6 {[%clk 0:00:49]} 69. Qg8+ {[%clk 0:01:07]}  Kf6 {[%clk 0:00:59]} 70. Qf8+ {[%clk 0:01:16]} 1/2-1/2


[Site "http://www.chessbomb.com"]

[Event "Meltwater Champions Chess Tour 2022: Chessable Masters | Prelims"]
[White "Jones, Gawain C B"]
[Black "Wei, Yi"]
[WhiteFideId "409561"]
[BlackFideId "8603405"]
[WhiteElo "2630"]
[BlackElo "2752"]
[Result "0-1"]
[Round "03"]
[TimeControl "900+10"]
[Date "2022.05.19"]
[WhiteClock "0:00:08"]
[BlackClock "0:01:33"]

1. e4 {[%clk 0:15:20]}  c5 {[%clk 0:15:20]} 2. c3 {[%clk 0:15:28]}  Nf6 {[%clk 0:15:28]} 3. e5 {[%clk 0:15:37]}  Nd5 {[%clk 0:15:37]} 4. Nf3 {[%clk 0:15:46]}  d6 {[%clk 0:15:45]} 5. d4 {[%clk 0:15:54]}  cxd4 {[%clk 0:15:51]} 6. cxd4 {[%clk 0:16:03]}  Nc6 {[%clk 0:15:59]} 7. Bc4 {[%clk 0:16:10]}  dxe5 {[%clk 0:16:08]} 8. dxe5 {[%clk 0:16:19]}  Be6 {[%clk 0:16:17]} 9. O-O {[%clk 0:16:26]}  g6 {[%clk 0:16:25]} 10. Ng5 {[%clk 0:16:33]}  Bg7 {[%clk 0:16:29]} 11. Nxe6 {[%clk 0:16:41]}  fxe6 {[%clk 0:16:38]} 12. f4 {[%clk 0:16:27]}  Qb6+ {[%clk 0:16:47]} 13. Kh1 {[%clk 0:16:36]}  Rd8 {[%clk 0:16:56]} 14. Qe2 {[%clk 0:16:37]}  Qc5 {[%clk 0:15:53]} 15. Qe4 {[%clk 0:15:49]}  Nxf4 {[%clk 0:13:34]} 16. Be3 {[%clk 0:09:30]}  Qxe5 {[%clk 0:13:35]} 17. Qxe5 {[%clk 0:08:32]}  Bxe5 {[%clk 0:10:56]} 18. Bxf4 {[%clk 0:08:39]}  Rf8 {[%clk 0:10:46]} 19. Bxe5 {[%clk 0:08:01]}  Rxf1+ {[%clk 0:10:53]} 20. Bxf1 {[%clk 0:08:11]}  Rd1 {[%clk 0:11:02]} 21. Kg1 {[%clk 0:08:07]}  Nxe5 {[%clk 0:11:10]} 22. h3 {[%clk 0:07:00]}  Nd3 {[%clk 0:07:31]} 23. g3 {[%clk 0:05:27]}  e5 {[%clk 0:06:08]} 24. Kg2 {[%clk 0:05:04]}  e4 {[%clk 0:06:10]} 25. Bxd3 {[%clk 0:04:55]}  exd3 {[%clk 0:06:16]} 26. Kf2 {[%clk 0:05:04]}  a5 {[%clk 0:05:07]} 27. a4 {[%clk 0:05:03]}  e5 {[%clk 0:05:00]} 28. Ke3 {[%clk 0:05:09]}  Ke7 {[%clk 0:05:03]} 29. h4 {[%clk 0:02:47]}  h5 {[%clk 0:05:02]} 30. Ra3 {[%clk 0:02:15]}  Rxb1 {[%clk 0:05:10]} 31. Rxd3 {[%clk 0:02:23]}  Rxb2 {[%clk 0:04:51]} 32. Rd5 {[%clk 0:02:32]}  Rb3+ {[%clk 0:05:00]} 33. Kf2 {[%clk 0:02:33]}  Ke6 {[%clk 0:03:58]} 34. Rxa5 {[%clk 0:02:42]}  Kf5 {[%clk 0:03:56]} 35. Rc5 {[%clk 0:02:11]}  Rb4 {[%clk 0:04:04]} 36. Rc7 {[%clk 0:01:52]}  Ke4 {[%clk 0:04:10]} 37. Rg7 {[%clk 0:01:51]}  Rb2+ {[%clk 0:04:12]} 38. Kg1 {[%clk 0:01:59]}  Kf3 {[%clk 0:03:15]} 39. Rxg6 {[%clk 0:02:07]}  e4 {[%clk 0:03:23]} 40. Rf6+ {[%clk 0:02:08]}  Kxg3 {[%clk 0:03:31]} 41. Kf1 {[%clk 0:02:17]}  Rb4 {[%clk 0:02:05]} 42. a5 {[%clk 0:02:02]}  Kxh4 {[%clk 0:02:07]} 43. Rg6 {[%clk 0:02:10]}  Rb2 {[%clk 0:01:35]} 44. Re6 {[%clk 0:01:33]}  Rb4 {[%clk 0:01:13]} 45. Rg6 {[%clk 0:01:40]}  Kh3 {[%clk 0:01:01]} 46. Ke2 {[%clk 0:01:23]}  h4 {[%clk 0:00:58]} 47. Ke3 {[%clk 0:01:21]}  Kh2 {[%clk 0:00:58]} 48. a6 {[%clk 0:01:24]}  bxa6 {[%clk 0:01:03]} 49. Rxa6 {[%clk 0:01:33]}  h3 {[%clk 0:00:35]} 50. Rg6 {[%clk 0:01:40]}  Kh1 {[%clk 0:00:38]} 51. Rg8 {[%clk 0:01:19]}  h2 {[%clk 0:00:34]} 52. Rg7 {[%clk 0:00:13]}  Rb2 {[%clk 0:00:43]} 53. Kxe4 {[%clk 0:00:11]}  Rg2 {[%clk 0:00:51]} 54. Ra7 {[%clk 0:00:20]}  Rg3 {[%clk 0:00:54]} 55. Ra2 {[%clk 0:00:11]}  Kg1 {[%clk 0:00:57]} 56. Kf4 {[%clk 0:00:19]}  Rf3+ {[%clk 0:00:13]} 57. Kxf3 {[%clk 0:00:15]}  h1=Q+ {[%clk 0:00:21]} 58. Kg3 {[%clk 0:00:24]}  Qh8 {[%clk 0:00:30]} 59. Rg2+ {[%clk 0:00:21]}  Kf1 {[%clk 0:00:38]} 60. Rf2+ {[%clk 0:00:30]}  Ke1 {[%clk 0:00:47]} 61. Rf5 {[%clk 0:00:24]}  Qg7+ {[%clk 0:00:43]} 62. Kf3 {[%clk 0:00:28]}  Qd4 {[%clk 0:00:49]} 63. Rf4 {[%clk 0:00:15]}  Qd3+ {[%clk 0:00:58]} 64. Kg4 {[%clk 0:00:24]}  Ke2 {[%clk 0:01:07]} 65. Rf6 {[%clk 0:00:25]}  Qd4+ {[%clk 0:01:06]} 66. Rf4 {[%clk 0:00:30]}  Qd7+ {[%clk 0:01:10]} 67. Kg5 {[%clk 0:00:30]}  Ke3 {[%clk 0:01:19]} 68. Rf6 {[%clk 0:00:13]}  Ke4 {[%clk 0:01:25]} 69. Rf1 {[%clk 0:00:08]}  Qb5+ {[%clk 0:01:33]} 0-1


[Site "http://www.chessbomb.com"]

[Event "Meltwater Champions Chess Tour 2022: Chessable Masters | Prelims"]
[White "Anton Guijarro, David"]
[Black "Vidit, Santosh Gujrathi"]
[WhiteFideId "2285525"]
[BlackFideId "5029465"]
[WhiteElo "2633"]
[BlackElo "2617"]
[Result "1/2-1/2"]
[Round "03"]
[TimeControl "900+10"]
[Date "2022.05.19"]
[WhiteClock "0:00:59"]
[BlackClock "0:01:22"]

1. Nf3 {[%clk 0:15:20]}  Nf6 {[%clk 0:15:20]} 2. c4 {[%clk 0:15:25]}  c5 {[%clk 0:15:28]} 3. Nc3 {[%clk 0:15:33]}  Nc6 {[%clk 0:15:36]} 4. e3 {[%clk 0:15:40]}  e6 {[%clk 0:15:45]} 5. d4 {[%clk 0:15:43]}  d5 {[%clk 0:15:54]} 6. cxd5 {[%clk 0:15:50]}  exd5 {[%clk 0:16:03]} 7. Bb5 {[%clk 0:15:56]}  cxd4 {[%clk 0:16:12]} 8. exd4 {[%clk 0:16:02]}  Bd6 {[%clk 0:16:21]} 9. O-O {[%clk 0:16:09]}  O-O {[%clk 0:16:29]} 10. Bg5 {[%clk 0:16:13]}  Bg4 {[%clk 0:16:22]} 11. Be2 {[%clk 0:16:15]}  Be6 {[%clk 0:14:36]} 12. Re1 {[%clk 0:15:58]}  h6 {[%clk 0:14:43]} 13. Bh4 {[%clk 0:16:04]}  g5 {[%clk 0:11:40]} 14. Bg3 {[%clk 0:16:11]}  Ne4 {[%clk 0:11:31]} 15. Bxd6 {[%clk 0:15:58]}  Nxd6 {[%clk 0:11:28]} 16. Ne5 {[%clk 0:14:29]}  Kg7 {[%clk 0:08:52]} 17. Bf3 {[%clk 0:11:36]}  Nf5 {[%clk 0:08:56]} 18. Nxc6 {[%clk 0:11:42]}  bxc6 {[%clk 0:09:06]} 19. Bg4 {[%clk 0:11:49]}  Qf6 {[%clk 0:08:56]} 20. Bxf5 {[%clk 0:11:54]}  Bxf5 {[%clk 0:09:05]} 21. Qd2 {[%clk 0:11:43]}  Rfe8 {[%clk 0:09:09]} 22. h3 {[%clk 0:10:50]}  Bg6 {[%clk 0:08:12]} 23. Rac1 {[%clk 0:10:36]}  h5 {[%clk 0:07:54]} 24. Re3 {[%clk 0:10:32]}  g4 {[%clk 0:06:11]} 25. Rce1 {[%clk 0:09:29]}  Rxe3 {[%clk 0:06:18]} 26. Rxe3 {[%clk 0:09:36]}  Rb8 {[%clk 0:05:51]} 27. b3 {[%clk 0:07:40]}  c5 {[%clk 0:04:41]} 28. Nxd5 {[%clk 0:02:43]}  Qxd4 {[%clk 0:04:48]} 29. Qc3 {[%clk 0:02:52]}  Rd8 {[%clk 0:04:00]} 30. Nf4 {[%clk 0:02:53]}  Qxc3 {[%clk 0:03:01]} 31. Rxc3 {[%clk 0:03:01]}  Rd1+ {[%clk 0:03:02]} 32. Kh2 {[%clk 0:03:09]}  Rd2 {[%clk 0:03:12]} 33. hxg4 {[%clk 0:03:01]}  hxg4 {[%clk 0:03:10]} 34. Kg3 {[%clk 0:02:57]}  Rxa2 {[%clk 0:03:04]} 35. Rxc5 {[%clk 0:03:02]}  Ra3 {[%clk 0:01:11]} 36. Kxg4 {[%clk 0:02:46]}  Rxb3 {[%clk 0:01:20]} 37. Ra5 {[%clk 0:02:53]}  Rb7 {[%clk 0:01:28]} 38. f3 {[%clk 0:02:59]}  Re7 {[%clk 0:01:28]} 39. g3 {[%clk 0:02:26]}  f6 {[%clk 0:01:25]} 40. Nd5 {[%clk 0:01:34]}  Rd7 {[%clk 0:01:27]} 41. Ne3 {[%clk 0:01:35]}  Bd3 {[%clk 0:01:24]} 42. Nf5+ {[%clk 0:00:59]}  Bxf5+ {[%clk 0:01:22]} 1/2-1/2


[Site "http://www.chessbomb.com"]

[Event "Meltwater Champions Chess Tour 2022: Chessable Masters | Prelims"]
[White "Ding, Liren"]
[Black "Shankland, Sam"]
[WhiteFideId "8603677"]
[BlackFideId "2004887"]
[WhiteElo "2836"]
[BlackElo "2616"]
[Result "1/2-1/2"]
[Round "03"]
[TimeControl "900+10"]
[Date "2022.05.19"]
[WhiteClock "0:01:35"]
[BlackClock "0:04:28"]

1. Nf3 {[%clk 0:15:20]}  c5 {[%clk 0:15:20]} 2. c4 {[%clk 0:15:07]}  Nf6 {[%clk 0:15:27]} 3. b3 {[%clk 0:15:06]}  g6 {[%clk 0:14:35]} 4. Bb2 {[%clk 0:15:11]}  Bg7 {[%clk 0:14:44]} 5. g3 {[%clk 0:15:17]}  b6 {[%clk 0:14:43]} 6. Bg2 {[%clk 0:15:26]}  Bb7 {[%clk 0:14:53]} 7. O-O {[%clk 0:15:36]}  O-O {[%clk 0:15:02]} 8. d4 {[%clk 0:14:49]}  cxd4 {[%clk 0:14:55]} 9. Qxd4 {[%clk 0:14:59]}  d6 {[%clk 0:14:50]} 10. Rc1 {[%clk 0:11:33]}  Nbd7 {[%clk 0:14:38]} 11. Nc3 {[%clk 0:11:41]}  a6 {[%clk 0:14:15]} 12. Nd5 {[%clk 0:09:25]}  b5 {[%clk 0:12:46]} 13. Qh4 {[%clk 0:08:33]}  Nxd5 {[%clk 0:11:19]} 14. Bxg7 {[%clk 0:08:35]}  Kxg7 {[%clk 0:11:28]} 15. cxd5 {[%clk 0:08:44]}  Nf6 {[%clk 0:11:34]} 16. e4 {[%clk 0:07:32]}  Rc8 {[%clk 0:10:52]} 17. Bh3 {[%clk 0:07:12]}  Rxc1+ {[%clk 0:10:18]} 18. Rxc1 {[%clk 0:07:22]}  h6 {[%clk 0:10:17]} 19. Qf4 {[%clk 0:07:09]}  Qb6 {[%clk 0:09:25]} 20. Rc2 {[%clk 0:04:18]}  e5 {[%clk 0:06:24]} 21. dxe6 {[%clk 0:04:11]}  fxe6 {[%clk 0:06:31]} 22. Bxe6 {[%clk 0:01:14]}  Nxe4 {[%clk 0:06:29]} 23. Qh4 {[%clk 0:01:23]}  g5 {[%clk 0:06:10]} 24. Qg4 {[%clk 0:01:32]}  Nxf2 {[%clk 0:05:55]} 25. Qd4+ {[%clk 0:01:36]}  Qxd4 {[%clk 0:06:04]} 26. Nxd4 {[%clk 0:01:46]}  Ne4 {[%clk 0:05:14]} 27. Rc7+ {[%clk 0:01:30]}  Kf6 {[%clk 0:05:22]} 28. Rxb7 {[%clk 0:01:37]}  Ke5 {[%clk 0:05:31]} 29. Nc6+ {[%clk 0:01:23]}  Kxe6 {[%clk 0:05:37]} 30. Re7+ {[%clk 0:01:31]}  Kd5 {[%clk 0:05:41]} 31. Nb4+ {[%clk 0:01:30]}  Kd4 {[%clk 0:05:49]} 32. Nxa6 {[%clk 0:01:18]}  g4 {[%clk 0:05:29]} 33. Nc7 {[%clk 0:01:02]}  Kd3 {[%clk 0:04:47]} 34. Ne6 {[%clk 0:00:56]}  Rc8 {[%clk 0:04:43]} 35. Nf4+ {[%clk 0:00:43]}  Kd4 {[%clk 0:04:25]} 36. Rc7 {[%clk 0:00:17]}  Rxc7 {[%clk 0:04:02]} 37. Ne6+ {[%clk 0:00:26]}  Ke3 {[%clk 0:04:12]} 38. Nxc7 {[%clk 0:00:36]}  Nc3 {[%clk 0:04:21]} 39. a4 {[%clk 0:00:26]}  bxa4 {[%clk 0:04:29]} 40. bxa4 {[%clk 0:00:36]}  Nxa4 {[%clk 0:04:07]} 41. Kg2 {[%clk 0:00:25]}  Ke4 {[%clk 0:04:00]} 42. h3 {[%clk 0:00:29]}  d5 {[%clk 0:03:42]} 43. hxg4 {[%clk 0:00:35]}  d4 {[%clk 0:03:50]} 44. Kf2 {[%clk 0:00:43]}  Nc3 {[%clk 0:03:52]} 45. Ne6 {[%clk 0:00:44]}  d3 {[%clk 0:03:51]} 46. Nc5+ {[%clk 0:00:53]}  Kd4 {[%clk 0:04:01]} 47. Nb3+ {[%clk 0:01:00]}  Ke4 {[%clk 0:03:55]} 48. Nd2+ {[%clk 0:01:08]}  Kd4 {[%clk 0:04:03]} 49. Nf3+ {[%clk 0:01:07]}  Ke4 {[%clk 0:04:09]} 50. Nd2+ {[%clk 0:01:16]}  Kd4 {[%clk 0:04:19]} 51. Nf3+ {[%clk 0:01:25]}  Ke4 {[%clk 0:04:28]} 52. Nd2+ {[%clk 0:01:35]} 1/2-1/2


[Site "http://www.chessbomb.com"]

[Event "Meltwater Champions Chess Tour 2022: Chessable Masters | Prelims"]
[White "Hansen, Eric"]
[Black "Mishra, Abhimanyu"]
[WhiteFideId "2606771"]
[BlackFideId "30920019"]
[WhiteElo "2579"]
[BlackElo "2524"]
[Result "0-1"]
[Round "03"]
[TimeControl "900+10"]
[Date "2022.05.19"]
[WhiteClock "0:00:47"]
[BlackClock "0:00:28"]

1. e4 {[%clk 0:15:20]}  c5 {[%clk 0:15:20]} 2. Nf3 {[%clk 0:15:19]}  d6 {[%clk 0:15:26]} 3. Bb5+ {[%clk 0:15:27]}  Nd7 {[%clk 0:15:34]} 4. c3 {[%clk 0:14:13]}  Nf6 {[%clk 0:15:35]} 5. Qe2 {[%clk 0:14:22]}  a6 {[%clk 0:15:15]} 6. Ba4 {[%clk 0:14:30]}  b5 {[%clk 0:15:24]} 7. Bc2 {[%clk 0:14:40]}  Bb7 {[%clk 0:15:33]} 8. O-O {[%clk 0:14:49]}  g6 {[%clk 0:15:37]} 9. d4 {[%clk 0:14:51]}  Bg7 {[%clk 0:15:35]} 10. Rd1 {[%clk 0:12:14]}  cxd4 {[%clk 0:14:31]} 11. cxd4 {[%clk 0:12:21]}  O-O {[%clk 0:14:40]} 12. Nc3 {[%clk 0:12:13]}  Qc7 {[%clk 0:12:45]} 13. Bd3 {[%clk 0:12:04]}  Nb6 {[%clk 0:12:26]} 14. a3 {[%clk 0:07:27]}  Rac8 {[%clk 0:12:19]} 15. h3 {[%clk 0:07:35]}  Nc4 {[%clk 0:10:43]} 16. Qe1 {[%clk 0:05:22]}  Rfe8 {[%clk 0:07:37]} 17. a4 {[%clk 0:04:35]}  b4 {[%clk 0:06:49]} 18. Nb1 {[%clk 0:04:43]}  e5 {[%clk 0:05:47]} 19. dxe5 {[%clk 0:04:10]}  dxe5 {[%clk 0:05:17]} 20. Nbd2 {[%clk 0:03:44]}  Nd6 {[%clk 0:05:06]} 21. Qe2 {[%clk 0:03:30]}  a5 {[%clk 0:04:41]} 22. b3 {[%clk 0:03:34]}  Nd7 {[%clk 0:04:02]} 23. Bb2 {[%clk 0:03:41]}  Nc5 {[%clk 0:04:07]} 24. Rac1 {[%clk 0:03:34]}  Qe7 {[%clk 0:03:47]} 25. Bb5 {[%clk 0:02:34]}  Red8 {[%clk 0:02:46]} 26. Qe3 {[%clk 0:02:41]}  Nxb5 {[%clk 0:01:48]} 27. axb5 {[%clk 0:02:44]}  Rd3 {[%clk 0:01:10]} 28. Qe2 {[%clk 0:02:53]}  Rcd8 {[%clk 0:01:02]} 29. Nc4 {[%clk 0:03:00]}  Rxd1+ {[%clk 0:01:01]} 30. Rxd1 {[%clk 0:03:08]}  Nxb3 {[%clk 0:01:02]} 31. Nfxe5 {[%clk 0:03:12]}  a4 {[%clk 0:00:46]} 32. Nc6 {[%clk 0:02:42]}  Bxc6 {[%clk 0:00:36]} 33. bxc6 {[%clk 0:01:12]}  a3 {[%clk 0:00:32]} 34. Rxd8+ {[%clk 0:00:14]}  Qxd8 {[%clk 0:00:39]} 35. Nxa3 {[%clk 0:00:18]}  bxa3 {[%clk 0:00:38]} 36. Bxa3 {[%clk 0:00:28]}  Nd4 {[%clk 0:00:23]} 37. Qa6 {[%clk 0:00:27]}  Be5 {[%clk 0:00:25]} 38. g3 {[%clk 0:00:16]}  h5 {[%clk 0:00:26]} 39. Bc5 {[%clk 0:00:12]}  Ne6 {[%clk 0:00:24]} 40. Be3 {[%clk 0:00:15]}  Qd1+ {[%clk 0:00:23]} 41. Kg2 {[%clk 0:00:24]}  Qc2 {[%clk 0:00:28]} 42. Qc8+ {[%clk 0:00:22]}  Kg7 {[%clk 0:00:33]} 43. Qd7 {[%clk 0:00:13]}  Qxe4+ {[%clk 0:00:36]} 44. Kf1 {[%clk 0:00:21]}  Bxg3 {[%clk 0:00:26]} 45. Bb6 {[%clk 0:00:16]}  Be5 {[%clk 0:00:22]} 46. Be3 {[%clk 0:00:25]}  Qh1+ {[%clk 0:00:20]} 47. Ke2 {[%clk 0:00:32]}  Qxh3 {[%clk 0:00:21]} 48. Qd5 {[%clk 0:00:42]}  Qf5 {[%clk 0:00:25]} 49. Qc4 {[%clk 0:00:47]}  Qg4+ {[%clk 0:00:28]} 0-1


[Site "http://www.chessbomb.com"]

[Event "Meltwater Champions Chess Tour 2022: Chessable Masters | Prelims"]
[White "Mamedyarov, Shakhriyar"]
[Black "Van Foreest, Jorden"]
[WhiteFideId "13401319"]
[BlackFideId "1039784"]
[WhiteElo "2699"]
[BlackElo "2645"]
[Result "1/2-1/2"]
[Round "03"]
[TimeControl "900+10"]
[Date "2022.05.19"]
[WhiteClock "0:07:43"]
[BlackClock "0:15:51"]

1. d4 {[%clk 0:15:20]}  d5 {[%clk 0:15:20]} 2. c4 {[%clk 0:15:26]}  e6 {[%clk 0:15:28]} 3. Nf3 {[%clk 0:15:34]}  c5 {[%clk 0:15:35]} 4. cxd5 {[%clk 0:15:40]}  exd5 {[%clk 0:15:44]} 5. Bg5 {[%clk 0:15:48]}  Nf6 {[%clk 0:15:50]} 6. Nc3 {[%clk 0:15:34]}  Be6 {[%clk 0:15:57]} 7. g3 {[%clk 0:15:03]}  Nc6 {[%clk 0:16:02]} 8. Bg2 {[%clk 0:15:08]}  h6 {[%clk 0:16:11]} 9. Bxf6 {[%clk 0:14:57]}  Qxf6 {[%clk 0:16:21]} 10. O-O {[%clk 0:15:05]}  O-O-O {[%clk 0:16:28]} 11. Rc1 {[%clk 0:14:56]}  Kb8 {[%clk 0:16:26]} 12. dxc5 {[%clk 0:14:03]}  Bxc5 {[%clk 0:16:31]} 13. Na4 {[%clk 0:13:52]}  Bd6 {[%clk 0:16:01]} 14. Qd2 {[%clk 0:13:08]}  Rc8 {[%clk 0:15:24]} 15. Nc5 {[%clk 0:13:03]}  Bxc5 {[%clk 0:15:30]} 16. Rxc5 {[%clk 0:13:13]}  Ne5 {[%clk 0:15:39]} 17. Rxc8+ {[%clk 0:12:16]}  Rxc8 {[%clk 0:15:46]} 18. b3 {[%clk 0:12:11]}  Nxf3+ {[%clk 0:15:32]} 19. Bxf3 {[%clk 0:12:21]}  Qc3 {[%clk 0:14:57]} 20. Qf4+ {[%clk 0:12:15]}  Qc7 {[%clk 0:15:06]} 21. Qa4 {[%clk 0:11:02]}  Qc6 {[%clk 0:15:11]} 22. Qa3 {[%clk 0:09:56]}  Qc5 {[%clk 0:15:17]} 23. Qb2 {[%clk 0:09:32]}  Qc3 {[%clk 0:15:23]} 24. Qa3 {[%clk 0:09:11]}  Qc5 {[%clk 0:15:24]} 25. Qa4 {[%clk 0:08:54]}  Qc6 {[%clk 0:15:29]} 26. Qf4+ {[%clk 0:08:53]}  Qc7 {[%clk 0:15:37]} 27. Qd4 {[%clk 0:08:24]}  Qc3 {[%clk 0:15:43]} 28. Qf4+ {[%clk 0:07:43]}  Qc7 {[%clk 0:15:51]} 1/2-1/2


[Site "http://www.chessbomb.com"]